fUST/lending_fUST_20260111
["ID","MTS","AMOUNT","RATE_DAILY","PERIOD"]
[401327289,1768139443890,-505.42705469,0.00014247,2]
[401327290,1768139443901,-1000.0,0.00014247,2]
[401327291,1768139443910,-1000.0,0.00014247,2]
[401327292,1768139443919,-793.78310386,0.00014368,2]
[401327293,1768139443929,-1500.0,0.00014368,2]
[401327294,1768139443938,-1512.80470062,0.00014368,2]
[401327295,1768139443947,-1500.0,0.00014368,2]
[401327296,1768139443956,-1500.0,0.00014368,2]
[401327297,1768139443965,-1500.0,0.00014368,2]
[401327298,1768139443974,-1500.0,0.00014368,2]
[401327299,1768139443983,-1500.0,0.00014368,2]
[401327300,1768139443992,-1500.0,0.00014368,2]
[401327301,1768139444002,-554.02767991,0.00014368,2]
[401327302,1768139444011,-1500.0,0.00014368,2]
[401327303,1768139444020,-1500.0,0.00014368,2]
[401327304,1768139444030,-1500.0,0.00014368,2]
[401327305,1768139444039,-1000.80134157,0.00014368,2]
[401327306,1768139444049,-1500.0,0.00014368,2]
[401327307,1768139444058,-546.83647191,0.00014368,2]
[401327308,1768139444067,-613.91769968,0.00014368,2]
[401327309,1768139444077,-1500.0,0.00014368,2]
[401327310,1768139444086,-1500.0,0.00014368,2]
[401327311,1768139444096,-168.36851892,0.00014368,2]
[401327312,1768139444105,-1500.0,0.00014368,2]
[401327313,1768139444114,-1500.0,0.00014368,2]
[401327314,1768139444124,-1500.0,0.00014368,2]
[401327315,1768139444133,-1000.0,0.00014368,2]
[401327316,1768139444143,-1500.0,0.00014368,2]
[401327317,1768139444152,-263.96834089,0.00014368,2]
[401327318,1768139444161,-406.5913621,0.00014368,2]
[401327319,1768139444171,-651.39515074,0.00014368,2]
[401327320,1768139444180,-1500.0,0.00014368,2]
[401327321,1768139444189,-1500.0,0.00014368,2]
[401327322,1768139444199,-1500.0,0.00014368,2]
[401327323,1768139444209,-1500.0,0.00014368,2]
[401327324,1768139444218,-1500.0,0.00014368,2]
[401327325,1768139444228,-1500.0,0.00014368,2]
[401327326,1768139444238,-223.48736773,0.00014368,2]
[401327327,1768139444247,-1613.36442406,0.00014368,2]
[401327328,1768139444256,-1423.0,0.00014372,2]
[401327329,1768139444266,-1423.0,0.00014509,2]
[401327330,1768139444275,-5000.0,0.0001451,2]
[401327331,1768139444284,-1423.0,0.00014646,2]
[401327332,1768139444294,-274.62,0.000147,2]
[401327333,1768139444304,-100000.0,0.00014736,2]
[401327334,1768139444314,-900.0,0.00014768,2]
[401327335,1768139444324,-1423.0,0.00014783,2]
[401327336,1768139444333,-500.79965419,0.00014795,2]
[401327337,1768139444343,-657.07022264,0.00014795,2]
[401327338,1768139444352,-1514.12213244,0.00014795,2]
[401327339,1768139444362,-488.64589349,0.00014795,2]
[401327340,1768139444371,-1500.0,0.00014795,2]
[401327341,1768139444380,-1500.0,0.00014795,2]
[401327342,1768139444389,-1500.0,0.00014795,2]
[401327343,1768139444399,-1102.53259662,0.00014795,2]
[401327344,1768139444408,-502.38932755,0.00014795,2]
[401327345,1768139444417,-161.478767,0.00014795,2]
[401327346,1768139444427,-1174.14847626,0.00014795,2]
[401327347,1768139444436,-1500.0,0.00014795,2]
[401327348,1768139444445,-501.33075681,0.00014795,2]
[401327349,1768139444454,-1500.0,0.00014795,2]
[401327350,1768139444463,-1499.24471264,0.00014795,2]
[401327351,1768139444473,-1500.0,0.00014795,2]
[401327352,1768139444482,-1025.59078617,0.00014795,2]
[401327353,1768139444492,-514.14829436,0.00014795,2]
[401327354,1768139444501,-1000.0,0.00014795,2]
[401327355,1768139444511,-1236.28209818,0.00014795,2]
[401327356,1768139444520,-1001.3782102,0.00014795,2]
[401327357,1768139444529,-813.64870907,0.00014795,2]
[401327358,1768139444538,-1163.68911449,0.00014795,2]
[401327359,1768139444547,-1500.0,0.00014795,2]
[401327360,1768139444556,-1500.0,0.00014795,2]
[401327361,1768139444566,-1500.0,0.00014795,2]
[401327362,1768139444575,-1500.0,0.00014795,2]
[401327363,1768139444584,-788.05151213,0.00014795,2]
[401327364,1768139444594,-503.75899236,0.00014795,2]
[401327365,1768139444603,-1500.0,0.00014795,2]
[401327366,1768139444612,-1516.76085072,0.00014795,2]
[401327367,1768139444623,-1500.0,0.00014795,2]
[401327368,1768139444634,-1500.0,0.00014795,2]
[401327369,1768139444643,-1482.84709438,0.00014795,2]
[401327370,1768139444653,-1509.97698878,0.00014795,2]
[401327371,1768139444663,-1500.0,0.00014795,2]
[401327372,1768139444672,-1500.0,0.00014795,2]
[401327373,1768139444682,-304.84096496,0.00014795,2]
[401327374,1768139444691,-1500.0,0.00014795,2]
[401327375,1768139444703,-1500.0,0.00014795,2]
[401327376,1768139444712,-3176.86810454,0.00014825,2]
[401327377,1768139444721,-151.47293248,0.000149,2]
[401327378,1768139444731,-151.47293248,0.000149,2]
[401327379,1768139444740,-151.47293248,0.000149,2]
[401327380,1768139444747,-150629.941391,0.000149,2]
[401327381,1768139444755,-192.00163587,0.00014916,2]
[401327382,1768139444764,-2000.0,0.00014916,2]
[401327383,1768139444773,-2000.0,0.00014916,2]
[401327384,1768139444782,-2000.0,0.00014916,2]
[401327385,1768139444791,-1001.19360014,0.00014916,2]
[401327386,1768139444800,-1498.81892914,0.00014916,2]
[401327387,1768139444810,-1781.06836301,0.00014916,2]
[401327388,1768139444821,-2000.0,0.00014916,2]
[401327389,1768139444832,-1485.3091038,0.00014916,2]
[401327390,1768139444843,-1965.81779273,0.00014916,2]
[401327391,1768139444854,-2000.0,0.00014916,2]
[401327392,1768139444864,-1150.76965904,0.00014916,2]
[401327393,1768139444873,-2000.0,0.00014916,2]
[401327394,1768139444883,-2000.0,0.00014916,2]
[401327395,1768139444892,-874.83618263,0.00014916,2]
[401327396,1768139444902,-2000.0,0.00014916,2]
[401327397,1768139444912,-2000.0,0.00014916,2]
[401327398,1768139444923,-2000.0,0.00014916,2]
[401327399,1768139444933,-2000.0,0.00014916,2]
[401327400,1768139444945,-1002.33157316,0.00014916,2]
[401327401,1768139444955,-2000.0,0.00014916,2]
[401327402,1768139444966,-2000.0,0.00014916,2]
[401327403,1768139444975,-1423.0,0.0001492,2]
[401327404,1768139444984,-1000.0,0.00015,2]
[401327405,1768139444994,-1424.0,0.00015057,2]
[401327406,1768139445003,-626.25201,0.00015068,2]
[401327407,1768139445012,-800.0,0.00015068,2]
[401327408,1768139445023,-1613.0,0.00015134,2]
[401327409,1768139445032,-379.50214295,0.00015152,2]
[401327410,1768139445041,-1087.80747029,0.00015242,2]
[401327411,1768139445050,-274.62,0.000153,2]
[401327412,1768139445060,-1200.0,0.00015316,2]
[401327413,1768139445069,-2000.0,0.00015342,2]
[401327414,1768139445079,-1640.95571878,0.00015342,2]
[401327415,1768139445087,-2000.0,0.00015342,2]
[401327416,1768139445097,-589.88646751,0.00015342,2]
[401327417,1768139445107,-1143.18421046,0.00015342,2]
[401327418,1768139445116,-1597.05305078,0.00015342,2]
[401327419,1768139445125,-500.0,0.00015342,2]
[401327420,1768139445134,-1003.80919542,0.00015342,2]
[401327421,1768139445142,-1004.51727604,0.00015342,2]
[401327422,1768139445150,-304.72135436,0.00015342,2]
[401327423,1768139445157,-1144.01857865,0.00015342,2]
[401327424,1768139445166,-339.58703801,0.00015342,2]
[401327425,1768139445174,-2000.0,0.00015342,2]
[401327426,1768139445181,-2000.0,0.00015342,2]
[401327427,1768139445190,-2000.0,0.00015342,2]
[401327428,1768139445198,-2000.0,0.00015342,2]
[401327429,1768139445207,-1501.01375621,0.00015342,2]
[401327430,1768139445218,-555.48898116,0.00015464,2]
[401327431,1768139445228,-1466.62413338,0.00015464,2]
[401327432,1768139445237,-2500.0,0.00015464,2]
[401327433,1768139445246,-2500.0,0.00015464,2]
[401327434,1768139445257,-170.16316784,0.00015464,2]
[401327435,1768139445266,-2500.0,0.00015464,2]
[401327436,1768139445277,-2500.0,0.00015464,2]
[401327437,1768139445286,-2500.0,0.00015464,2]
[401327438,1768139445296,-2500.0,0.00015464,2]
[401327439,1768139445306,-2500.0,0.00015464,2]
[401327440,1768139445317,-2500.0,0.00015464,2]
[401327441,1768139445328,-2500.0,0.00015464,2]
[401327442,1768139445339,-2500.0,0.00015464,2]
[401327443,1768139445348,-1000.0,0.00015601,2]
[401327444,1768139445356,-492.0,0.00015601,2]
[401327445,1768139445365,-274.62,0.000158,2]
[401327446,1768139445373,-1500.0,0.00015864,2]
[401327447,1768139445382,-2500.0,0.0001589,2]
[401327448,1768139445390,-2500.0,0.0001589,2]
[401327449,1768139445399,-2500.0,0.0001589,2]
[401327450,1768139445409,-2500.0,0.0001589,2]
[401327451,1768139445418,-2500.0,0.0001589,2]
[401327452,1768139445428,-2500.0,0.0001589,2]
[401327453,1768139445437,-3000.0,0.00016012,2]
[401327454,1768139445447,-3000.0,0.00016012,2]
[401327455,1768139445456,-3000.0,0.00016012,2]
[401327456,1768139445466,-3000.0,0.00016012,2]
[401327457,1768139445475,-3000.0,0.00016012,2]
[401327458,1768139445484,-3000.0,0.00016012,2]
[401327459,1768139445492,-3000.0,0.00016012,2]
[401327460,1768139445502,-1006.66545063,0.00016012,2]
[401327461,1768139445510,-3000.0,0.00016012,2]
[401327462,1768139445519,-897.40421659,0.00016012,2]
[401327463,1768139445529,-1600.0,0.00016164,2]
[401327464,1768139445538,-274.62,0.000163,2]
[401327465,1768139445548,-1800.0,0.00016412,2]
[401327466,1768139445557,-500.0,0.00016438,2]
[401327472,1768139445566,-500.0,0.00016438,2]
[401327473,1768139445656,-500.0,0.00016438,2]
[401327474,1768139445666,-500.0,0.00016438,2]
[401327475,1768139445675,-481.92486594,0.00016438,2]
[401327476,1768139445684,-500.0,0.00016438,2]
[401327477,1768139445695,-500.0,0.00016438,2]
[401327479,1768139445706,-594.49843147,0.00016438,2]
[401327481,1768139445716,-3002.60955562,0.00016438,2]
[401327483,1768139445725,-1552.92932298,0.00016438,2]
[401327484,1768139445734,-3000.0,0.00016438,2]
[401327485,1768139445744,-3000.0,0.00016438,2]
[401327486,1768139445758,-3000.0,0.00016438,2]
[401327487,1768139445775,-3000.0,0.00016438,2]
[401327488,1768139445786,-260.15865923,0.00016438,2]
[401327489,1768139445796,-200.0,0.00016473,2]
[401327490,1768139445806,-3500.0,0.0001656,2]
[401327491,1768139445815,-3500.0,0.0001656,2]
[401327492,1768139445824,-3500.0,0.0001656,2]
[401327493,1768139445833,-3500.0,0.0001656,2]
[401327494,1768139445843,-3500.0,0.0001656,2]
[401327495,1768139445852,-2942.53787952,0.0001656,2]
[401327496,1768139445862,-3500.0,0.0001656,2]
[401327497,1768139445871,-3500.0,0.0001656,2]
[401327498,1768139445881,-2258.0,0.00016648,2]
[401327499,1768139445891,-274.62,0.000168,2]
[401327500,1768139445900,-2100.0,0.0001696,2]
[401327501,1768139445911,-2578.16970935,0.00016986,2]
[401327502,1768139445920,-3500.0,0.00016986,2]
[401327503,1768139445930,-3500.0,0.00016986,2]
[401327504,1768139445939,-3500.0,0.00016986,2]
[401327505,1768139445949,-4000.0,0.00017108,2]
[401327506,1768139445958,-4000.0,0.00017108,2]
[401327507,1768139445968,-1962.04250286,0.00017108,2]
[401327508,1768139445978,-4000.0,0.00017108,2]
[401327509,1768139445987,-3000.0,0.00017108,2]
[401327510,1768139445996,-4000.0,0.00017108,2]
[401327512,1768139446007,-4000.0,0.00017108,2]
[401327513,1768139446017,-423.85953628,0.00017152,2]
[401327514,1768139446027,-1000.0,0.00017161,2]
[401327515,1768139446038,-791.0,0.00017161,2]
[401327516,1768139446048,-1901.71937705,0.0001726,2]
[401327517,1768139446057,-274.62,0.000173,2]
[401327518,1768139446066,-5000.0,0.00017412,2]
[401327519,1768139446075,-2400.0,0.00017508,2]
[401327521,1768139446086,-4000.0,0.00017534,2]
[401327523,1768139446097,-4000.0,0.00017534,2]
[401327524,1768139446107,-4000.0,0.00017534,2]
[401327525,1768139446117,-1087.80747027,0.00017627,2]
[401327526,1768139446128,-4500.0,0.00017656,2]
[401327527,1768139446138,-4500.0,0.00017656,2]
[401327528,1768139446148,-878.46600243,0.00017656,2]
[401327529,1768139446157,-4500.0,0.00017656,2]
[401327530,1768139446167,-4500.0,0.00017656,2]
[401327531,1768139446176,-274.62,0.000178,2]
[401327532,1768139446186,-200.0,0.00017842,2]
[401327533,1768139446194,-444.72420012,0.00018056,2]
[401327534,1768139446203,-4500.0,0.00018082,2]
[401327536,1768139446213,-4500.0,0.00018082,2]
[401327537,1768139446222,-4500.0,0.00018082,2]
[401327539,1768139446232,-1642.48470631,0.00018204,2]
[401327540,1768139446242,-2495.04726907,0.00018204,2]
[401327541,1768139446251,-5000.0,0.00018204,2]
[401327542,1768139446261,-5000.0,0.00018204,2]
[401327544,1768139446270,-274.62,0.000183,2]
[401327545,1768139446280,-1318.0,0.00018312,2]
[401327547,1768139446290,-626.25201,0.00018493,2]
[401327548,1768139446300,-4206.028305,0.0001863,2]
[401327549,1768139446309,-5000.0,0.0001863,2]
[401327550,1768139446319,-2500.0,0.0001863,2]
[401327551,1768139446329,-152.655079,0.00018752,2]
[401327552,1768139446339,-151.0,0.00018752,2]
[401327553,1768139446349,-151.0,0.00018752,2]
[401327554,1768139446359,-5500.0,0.00018752,2]
[401327555,1768139446369,-1417.01439994,0.00018752,2]
[401327556,1768139446379,-5000.0,0.00018863,2]
[401327558,1768139446389,-1000.0,0.00018877,2]
[401327559,1768139446398,-1000.0,0.00018877,2]
[401327561,1768139446407,-274.62,0.000189,2]
[401327562,1768139446417,-303.10001603,0.000189,2]
[401327563,1768139446427,-303.10001603,0.000189,2]
[401327564,1768139446436,-303.10001603,0.00019089,2]
[401327565,1768139446447,-303.10001603,0.00019089,2]
[401327566,1768139446456,-468.21692961,0.00019152,2]
[401327567,1768139446466,-506.7938,0.00019178,2]
[401327568,1768139446475,-200.0,0.00019178,2]
[401327569,1768139446486,-506.7938,0.00019178,2]
[401327570,1768139446495,-506.7938,0.00019178,2]
[401327572,1768139446505,-5500.0,0.00019178,2]
[401327574,1768139446515,-167.58,0.000192,2]
[401327576,1768139446525,-303.10001603,0.00019278,2]
[401327577,1768139446534,-303.10001603,0.00019278,2]
[401327579,1768139446544,-2140.41,0.000193,2]
[401327580,1768139446553,-166.96,0.000193,2]
[401327582,1768139446563,-163.88,0.000193,2]
[401327584,1768139446573,-500.0,0.000193,2]
[401327585,1768139446583,-274.62,0.000194,2]
[401327587,1768139446593,-303.10001603,0.00019467,2]
[401327588,1768139446607,-303.10001603,0.00019467,2]
[401327589,1768139446617,-526.6,0.00019592,2]
[401327591,1768139446631,-13367.01,0.000196,2]
[401327592,1768139446641,-303.10001603,0.00019656,2]
[401327593,1768139446651,-156.419626,0.00019656,2]
[401327594,1768139446663,-303.10001603,0.00019656,2]
[401327595,1768139446674,-151.0,0.00019726,2]
[401327596,1768139446684,-179.291309,0.00019726,2]
[401327597,1768139446696,-179.291309,0.00019726,2]
[401327598,1768139446705,-179.291309,0.00019726,2]
[401327599,1768139446715,-179.291309,0.00019726,2]
[401327600,1768139446724,-2067.54835774,0.00019726,2]
[401327601,1768139446733,-454.65002405,0.00019845,4]
[401327602,1768139446742,-454.65002405,0.00019845,4]
[401327603,1768139446751,-274.62,0.000199,2]
[401327604,1768139446761,-24445.0,0.0002,30]
[401327605,1768139446770,-506.7938,0.0002,4]
[401327606,1768139446780,-151.97857558,0.0002,2]
[401327607,1768139446789,-1087.80747027,0.00020012,2]
[401327608,1768139446799,-454.65002405,0.00020034,4]
[401327609,1768139446808,-454.65002405,0.00020034,4]
[401327610,1768139446817,-3176.86810454,0.00020149,2]
[401327611,1768139446827,-454.65002405,0.00020223,4]
[401327612,1768139446836,-454.65002405,0.00020223,4]
[401327613,1768139446846,-274.62,0.000204,2]
[401327614,1768139446855,-506.7938,0.00020411,5]
[401327615,1768139446865,-454.65002405,0.00020412,4]
[401327616,1768139446875,-454.65002405,0.00020412,4]
[401327617,1768139446884,-454.65002405,0.00020601,4]
[401327618,1768139446894,-301.57435521,0.00020601,4]
[401327619,1768139446904,-1000.0,0.00020765,2]
[401327620,1768139446913,-1000.0,0.00020765,2]
[401327621,1768139446923,-579.0,0.00020765,2]
[401327622,1768139446932,-151.0,0.000209,4]
[401327623,1768139446942,-151.0,0.000209,3]
[401327624,1768139446951,-274.62,0.000209,2]
[401327625,1768139446960,-512.57432294,0.00021152,2]
[401327626,1768139446969,-526.6,0.00021175,2]
[401327627,1768139446980,-258.38,0.00021294,2]
[401327628,1768139446989,-274.62,0.000214,2]
[401327629,1768139446999,-274.62,0.000219,2]
[401327630,1768139447008,-626.25201,0.00021918,2]
[401327631,1768139447018,-151.0,0.00021918,2]
[401327632,1768139447027,-151.0,0.00021918,2]
[401327633,1768139447037,-151.0,0.00021918,2]
[401327634,1768139447047,-151.0,0.00021918,2]
[401327635,1768139447056,-151.0,0.00021918,2]
[401327636,1768139447065,-151.0,0.00021918,2]
[401327637,1768139447075,-151.0,0.00021918,2]
[401327638,1768139447084,-151.292503,0.00021918,2]
[401327639,1768139447094,-151.0,0.00021918,2]
[401327640,1768139447103,-151.0,0.00021918,2]
[401327641,1768139447112,-151.0,0.00021918,2]
[401327642,1768139447121,-301.393574,0.00021918,2]
[401327643,1768139447132,-151.0,0.00021918,2]
[401327644,1768139447141,-151.0,0.00021918,2]
[401327645,1768139447150,-170.54126,0.00021918,2]
[401327646,1768139447159,-151.0,0.00021918,2]
[401327647,1768139447168,-164.871038,0.00021918,2]
[401327648,1768139447178,-1638.845663,0.00021918,2]
[401327649,1768139447187,-1638.845663,0.00021918,2]
[401327650,1768139447197,-151.0,0.00021918,2]
[401327651,1768139447207,-728.329358,0.00021918,2]
[401327652,1768139447216,-728.329358,0.00021918,2]
[401327653,1768139447226,-728.329358,0.00021918,2]
[401327654,1768139447238,-728.329358,0.00021918,2]
[401327655,1768139447251,-151.0,0.00021918,2]
[401327656,1768139447261,-240.800368,0.00021918,2]
[401327657,1768139447270,-160.002934,0.00021918,2]
[401327658,1768139447280,-151.0,0.00021918,2]
[401327659,1768139447290,-200.586455,0.00021918,2]
[401327660,1768139447299,-151.0,0.00021918,2]
[401327661,1768139447309,-151.0,0.00021918,2]
[401327662,1768139447319,-151.0,0.00021918,2]
[401327663,1768139447328,-152.567384,0.00021918,2]
[401327664,1768139447338,-151.0,0.00021918,2]
[401327665,1768139447347,-165.523557,0.00021918,2]
[401327666,1768139447357,-151.0,0.00021918,2]
[401327667,1768139447366,-165.523557,0.00021918,2]
[401327668,1768139447376,-151.0,0.00021918,2]
[401327669,1768139447391,-151.0,0.00021918,2]
[401327670,1768139447407,-165.523557,0.00021918,2]
[401327671,1768139447417,-151.0,0.00021918,2]
[401327672,1768139447426,-165.523557,0.00021918,2]
[401327673,1768139447436,-151.0,0.00021918,2]
[401327674,1768139447446,-151.0,0.00021918,2]
[401327675,1768139447455,-225.859576,0.00021918,2]
[401327676,1768139447464,-151.0,0.00021918,2]
[401327677,1768139447551,-151.0,0.00021918,2]
[401327678,1768139447561,-151.0,0.00021918,2]
[401327679,1768139447571,-151.0,0.00021918,2]
[401327680,1768139447580,-151.0,0.00021918,2]
[401327681,1768139447590,-151.0,0.00021918,2]
[401327682,1768139447599,-172.824008,0.00021918,2]
[401327683,1768139447609,-151.0,0.00021918,2]
[401327684,1768139447620,-151.0,0.00021918,2]
[401327685,1768139447631,-1390.654024,0.00021918,2]
[401327686,1768139447640,-1390.654024,0.00021918,2]
[401327687,1768139447649,-151.0,0.00021918,2]
[401327688,1768139447659,-161.662681,0.00021918,2]
[401327689,1768139447669,-1390.654024,0.00021918,2]
[401327690,1768139447679,-1390.654024,0.00021918,2]
[401327691,1768139447690,-151.0,0.00021918,2]
[401327692,1768139447702,-152.90727816,0.00021918,2]
[401327693,1768139447711,-1087.80747027,0.00022396,2]
[401327694,1768139447720,-274.62,0.000224,2]
[401327695,1768139447730,-526.6,0.00022757,2]
[401327696,1768139447740,-1000.0,0.00022841,10]
[401327697,1768139447749,-1000.0,0.00022841,10]
[401327698,1768139447758,-1000.0,0.00022841,10]
[401327699,1768139447767,-274.62,0.00023,2]
[401327700,1768139447777,-556.93171627,0.00023152,2]
[401327701,1768139447787,-274.62,0.000235,2]
[401327702,1768139447796,-274.62,0.00024,2]
[401327703,1768139447805,-526.6,0.0002434,2]
[401327704,1768139447814,-2140.41,0.000244,14]
[401327705,1768139447824,-274.62,0.000245,2]
[401327706,1768139447833,-500.0,0.00024658,2]
[401327707,1768139447843,-155.5739919,0.00024771,5]
[401327708,1768139447854,-1087.80747027,0.00024781,2]
[401327709,1768139447864,-500.0,0.00024795,2]
[401327710,1768139447873,-151.0,0.000248,7]
[401327711,1768139447883,-151.0,0.000248,7]
[401327712,1768139447892,-151.0,0.000248,7]
[401327713,1768139447901,-700.258706,0.000248,7]
[401327714,1768139447910,-700.258706,0.000248,7]
[401327715,1768139447921,-700.258706,0.000248,7]
[401327716,1768139447931,-700.258706,0.000248,7]
[401327717,1768139447940,-163.313773,0.000249,7]
[401327718,1768139447950,-151.0,0.000249,7]
[401327719,1768139447959,-151.0,0.000249,7]
[401327720,1768139447969,-151.0,0.000249,7]
[401327721,1768139447979,-151.0,0.000249,7]
[401327722,1768139447989,-151.0,0.000249,7]
[401327723,1768139447999,-151.0,0.000249,7]
[401327724,1768139448008,-151.0,0.000249,7]
[401327725,1768139448017,-169.882376,0.000249,7]
[401327726,1768139448028,-264.224,0.000249,7]
[401327727,1768139448037,-264.224,0.000249,7]
[401327728,1768139448049,-264.224,0.000249,7]
[401327729,1768139448058,-264.224,0.000249,7]
[401327730,1768139448067,-161.096358,0.000249,7]
[401327731,1768139448076,-151.0,0.000249,7]
[401327732,1768139448085,-151.0,0.000249,7]
[401327733,1768139448095,-151.0,0.000249,7]
[401327734,1768139448105,-412.837039,0.000249,7]
[401327735,1768139448116,-412.837039,0.000249,7]
[401327736,1768139448125,-412.837039,0.000249,7]
[401327737,1768139448135,-412.837039,0.000249,7]
[401327738,1768139448145,-151.0,0.000249,7]
[401327739,1768139448154,-151.0,0.000249,7]
[401327740,1768139448164,-151.0,0.000249,7]
[401327741,1768139448173,-156.82101,0.000249,7]
[401327742,1768139448182,-151.0,0.000249,7]
[401327743,1768139448191,-151.0,0.000249,7]
[401327744,1768139448200,-151.0,0.000249,7]
[401327745,1768139448209,-232.476622,0.000249,7]
[401327746,1768139448218,-151.0,0.000249,7]
[401327747,1768139448228,-151.0,0.000249,7]
[401327748,1768139448238,-151.0,0.000249,7]
[401327749,1768139448246,-271.161441,0.000249,7]
[401327750,1768139448257,-192.928076,0.000249,7]
[401327751,1768139448266,-400097.821185,0.000249,2]
[401327752,1768139448276,-500.0,0.00024932,2]
[401327753,1768139448285,-274.62,0.00025,2]
[401327754,1768139448295,-500.0,0.00025069,2]
[401327755,1768139448304,-151.0,0.00025069,7]
[401327756,1768139448314,-165.523557,0.00025069,7]
[401327757,1768139448323,-151.0,0.00025069,7]
[401327758,1768139448332,-165.523557,0.00025069,7]
[401327759,1768139448342,-151.0,0.00025069,7]
[401327760,1768139448352,-151.0,0.00025069,7]
[401327761,1768139448362,-165.523557,0.00025069,7]
[401327762,1768139448371,-165.523557,0.00025069,7]
[401327763,1768139448382,-151.0,0.00025069,7]
[401327764,1768139448393,-151.0,0.00025069,7]
[401327765,1768139448403,-151.0,0.00025069,7]
[401327766,1768139448414,-151.0,0.00025069,7]
[401327767,1768139448424,-151.0,0.00025069,7]
[401327768,1768139448434,-151.0,0.00025069,7]
[401327769,1768139448443,-151.0,0.00025069,7]
[401327770,1768139448453,-1390.654024,0.00025069,7]
[401327771,1768139448463,-1390.654024,0.00025069,7]
[401327772,1768139448472,-151.0,0.00025069,7]
[401327773,1768139448483,-1390.654024,0.00025069,7]
[401327774,1768139448491,-1390.654024,0.00025069,7]
[401327775,1768139448501,-1000.0,0.00025126,10]
[401327776,1768139448511,-1000.0,0.00025126,10]
[401327777,1768139448521,-1000.0,0.00025126,10]
[401327778,1768139448531,-715.0,0.00025126,10]
[401327779,1768139448541,-151.0,0.00025126,7]
[401327780,1768139448551,-195.886572,0.00025126,7]
[401327781,1768139448560,-151.0,0.00025126,2]
[401327782,1768139448569,-151.0,0.00025126,7]
[401327783,1768139448579,-160.161373,0.00025126,7]
[401327784,1768139448588,-152.205819,0.00025126,7]
[401327785,1768139448597,-151.0,0.00025126,7]
[401327786,1768139448607,-151.0,0.00025126,7]
[401327787,1768139448616,-151.0,0.00025126,7]
[401327788,1768139448629,-179.291309,0.00025126,7]
[401327789,1768139448638,-151.0,0.00025126,7]
[401327790,1768139448647,-179.291309,0.00025126,7]
[401327791,1768139448656,-179.291309,0.00025126,7]
[401327792,1768139448666,-179.291309,0.00025126,7]
[401327793,1768139448675,-601.28910961,0.00025152,2]
[401327794,1768139448685,-250.0,0.00025205,2]
[401327795,1768139448695,-500.0,0.00025206,2]
[401327796,1768139448704,-626.25201,0.00025342,2]
[401327797,1768139448714,-500.0,0.00025343,2]
[401327798,1768139448723,-3176.86810454,0.00025474,2]
[401327799,1768139448732,-500.0,0.0002548,2]
[401327800,1768139448741,-274.62,0.000255,2]
[401327801,1768139448751,-255.99235489,0.00025617,2]
[401327802,1768139448760,-2000.0,0.00025653,7]
[401327803,1768139448769,-313.77529652,0.00025726,14]
[401327804,1768139448778,-350.0,0.00025753,2]
[401327805,1768139448787,-2026.41544348,0.0002587,2]
[401327806,1768139448797,-526.6,0.00025922,2]
[401327807,1768139448806,-13367.01,0.00026,2]
[401327808,1768139448816,-274.62,0.00026,2]
[401327809,1768139448825,-151.0,0.00026,7]
[401327810,1768139448834,-151.0,0.00026,7]
[401327811,1768139448843,-151.0,0.00026,7]
[401327812,1768139448853,-160.734397,0.00026,7]
[401327813,1768139448863,-159.196638,0.00026,7]